fUST/lending_fUST_20260315
["ID","MTS","AMOUNT","RATE_DAILY","PERIOD"]
[408415048,1773585038552,-500.0,7.103e-05,2]
[408415049,1773585038562,-491.47710023,7.103e-05,2]
[408415050,1773585038572,-500.52775023,7.103e-05,2]
[408415051,1773585038581,-323.27751239,7.103e-05,2]
[408415052,1773585038591,-500.0,7.103e-05,2]
[408415053,1773585038601,-500.0,7.103e-05,2]
[408415054,1773585038610,-279.26515635,7.121e-05,2]
[408415055,1773585038620,-3993.8002536,7.122e-05,2]
[408415056,1773585038631,-10608.01448721,7.122e-05,2]
[408415057,1773585038643,-13367.51518706,7.122e-05,2]
[408415093,1773585047115,-63.68126276,7.051e-05,2]
[408415138,1773585047569,-715.74,7.051e-05,2]
[408415141,1773585047582,-3137.83276337,7.051e-05,2]
[408415150,1773585047677,-5928.58760955,7.051e-05,2]
[408415151,1773585047688,-6073.81993212,7.122e-05,2]
[408415152,1773585047701,-24030.53449191,7.122e-05,2]
[408415153,1773585047712,-104328.0,7.122e-05,2]
[408415154,1773585076154,-790.31621545,6.642e-05,2]
[408415155,1773585076168,-361.9195691,6.642e-05,2]
[408415156,1773585076178,-186.6654815,6.71e-05,2]
[408415157,1773585076188,-603.65073395,7.051e-05,2]
[408415158,1773585136134,151.0,0.000102,120]
[408415159,1773585212030,151.0,0.000102,120]
[408415160,1773585213445,151.0,0.000102,120]
[408415161,1773585215059,151.0,0.000102,120]
[408415162,1773585218088,151.0,0.000102,120]
[408415163,1773585237370,151.0,0.000102,120]
[408415164,1773585277212,151.0,0.000102,120]
[408415165,1773585327707,151.0,0.000102,120]
[408415166,1773585375938,68.64827724,0.000102,120]
[408415167,1773585375968,82.35172276,0.000102,120]
[408415168,1773585406971,151.0,0.000102,120]
[408415169,1773585437580,151.0,0.000102,120]
[408415170,1773585485267,151.0,0.000102,120]
[408415171,1773585521971,151.0,0.000102,120]
[408415172,1773585554839,151.0,0.000102,120]
[408415173,1773585597230,151.0,0.000102,120]
[408415174,1773585620598,1063.87,0.000102,120]
[408415175,1773585637533,151.0,0.000102,120]
[408415177,1773585683039,151.0,0.000102,120]
[408415178,1773585716841,151.0,0.000102,120]
[408415179,1773585757768,151.0,0.000102,120]
[408415180,1773585797590,151.0,0.000102,120]
[408415181,1773585835113,151.0,0.000102,120]
[408415182,1773585867465,151.0,0.000102,120]
[408415183,1773585914597,151.0,0.000102,120]
[408415184,1773585952258,151.0,0.000102,120]
[408415185,1773585988966,88.77827724,0.000102,120]
[408415186,1773585988998,62.22172276,0.000102,120]
[408415190,1773586027018,151.0,0.000102,120]
[408415193,1773586068359,151.0,0.000102,120]
[408415197,1773586114603,151.0,0.000102,120]
[408415198,1773586146694,151.0,0.000102,120]
[408415199,1773586177008,151.0,0.000102,120]
[408415201,1773586212168,151.0,0.000102,120]
[408415226,1773586232460,-5000.0,6.034e-05,2]
[408415228,1773586232470,-507.0,6.095e-05,2]
[408415230,1773586232479,-458.49435571,6.095e-05,2]
[408415232,1773586232489,-2388.785719,6.195e-05,2]
[408415234,1773586232500,-116.01428099,6.195e-05,2]
[408415236,1773586232509,-1200.0,6.578e-05,2]
[408415238,1773586232519,-300.0,6.764e-05,2]
[408415240,1773586232528,-212.58724162,6.764e-05,2]
[408415241,1773586232539,-87.41275838,6.764e-05,2]
[408415242,1773586232548,-300.0,6.764e-05,2]
[408415243,1773586232556,-1498.19575432,6.767e-05,2]
[408415244,1773586232565,-151.79506583,6.8e-05,2]
[408415245,1773586232574,-154.80402402,6.8e-05,2]
[408415247,1773586232583,-155.44911057,6.8e-05,2]
[408415249,1773586232592,-155.75136634,6.8e-05,2]
[408415251,1773586232601,-96.59192054,6.867e-05,2]
[408415254,1773586232612,-2750.0,6.867e-05,2]
[408415518,1773586241083,-21536.60239444,6.852e-05,2]
[408415519,1773586241093,-119.9611917,6.867e-05,2]
[408415521,1773586241102,-500.0,6.903e-05,2]
[408415524,1773586241112,-500.0,6.903e-05,2]
[408415526,1773586241121,-500.0,6.903e-05,2]
[408415528,1773586241130,-500.0,6.903e-05,2]
[408415530,1773586241140,-500.0,6.903e-05,2]
[408415531,1773586241149,-500.0,6.903e-05,2]
[408415534,1773586241158,-500.0,6.903e-05,2]
[408415536,1773586241168,-500.0,6.903e-05,2]
[408415537,1773586241177,-500.0,6.903e-05,2]
[408415540,1773586241186,-500.0,6.903e-05,2]
[408415542,1773586241195,-10243.94833042,6.921e-05,2]
[408416088,1773586246482,-5000.0,6.783e-05,2]
[408416090,1773586246492,-14188.59560937,6.921e-05,2]
[408416109,1773586246657,-123546.80319403,6.921e-05,2]
[408416402,1773586256412,151.0,0.000102,120]
[408416403,1773586296943,151.0,0.000102,120]
[408416404,1773586327043,151.0,0.000102,120]
[408416405,1773586365001,151.0,0.000102,120]
[408416406,1773586407190,151.0,0.000102,120]
[408416407,1773586447318,151.0,0.000102,120]
[408416408,1773586485370,151.0,0.000102,120]
[408416409,1773586528097,151.0,0.000102,120]
[408416410,1773586566212,151.0,0.000102,120]
[408416411,1773586602182,151.0,0.000102,120]
[408416412,1773586642320,151.0,0.000102,120]
[408416413,1773586677975,151.0,0.000102,120]
[408416414,1773586715723,151.0,0.000102,120]
[408416415,1773586755173,151.0,0.000102,120]
[408416416,1773586797635,151.0,0.000102,120]
[408416418,1773586837833,151.0,0.000102,120]
[408416419,1773586862712,-1022.18659974,6.292e-05,2]
[408416420,1773586862794,-421.09085612,6.356e-05,2]
[408416421,1773586887238,115.77827724,0.000102,120]
[408416422,1773586892000,-1022.18659974,6.356e-05,2]
[408416423,1773586918091,151.0,0.0001,120]
[408416424,1773586955264,151.0,0.0001,120]
[408416426,1773586964567,14345.9512122,2.3e-05,120]
[408416427,1773586996569,151.0,0.0001,120]
[408416428,1773587027023,151.0,0.0001,120]
[408416429,1773587067068,151.0,0.0001,120]
[408416430,1773587107766,151.0,0.0001,120]
[408416431,1773587147695,151.0,0.0001,120]
[408416432,1773587183894,151.0,0.0001,120]
[408416433,1773587214096,151.0,0.0001,120]
[408416434,1773587247278,151.0,0.0001,120]
[408416435,1773587285439,151.0,0.0001,120]
[408416436,1773587335876,151.0,0.0001,120]
[408416448,1773587375646,151.0,0.0001,120]
[408416449,1773587417075,151.0,0.0001,120]
[408416566,1773587444991,-5000.0,6.039e-05,2]
[408416567,1773587445002,-999.7,6.1e-05,2]
[408416568,1773587445011,-472.680106,6.29e-05,2]
[408416569,1773587445020,-300.0,6.419e-05,2]
[408416570,1773587445030,-500.0,6.42e-05,2]
[408416571,1773587445039,-500.0,6.42e-05,2]
[408416572,1773587445049,-463.6371124,6.42e-05,2]
[408416573,1773587445058,-472.680106,6.555e-05,2]
[408416574,1773587445067,-500.0,6.593e-05,2]
[408416575,1773587445076,-500.0,6.593e-05,2]
[408416576,1773587445086,-151.2685478,6.6e-05,2]
[408416577,1773587445099,-153.39793359,6.6e-05,2]
[408416578,1773587445109,-500.0,6.619e-05,2]
[408416579,1773587445119,-493.44531311,6.619e-05,2]
[408416580,1773587445128,-175.91514903,6.619e-05,2]
[408416581,1773587445138,-500.0,6.619e-05,2]
[408416582,1773587445147,-500.0,6.619e-05,2]
[408416583,1773587445157,-500.0,6.619e-05,2]
[408416584,1773587445168,-346.27265917,6.619e-05,2]
[408416585,1773587445179,-500.0,6.619e-05,2]
[408416586,1773587445188,-500.0,6.619e-05,2]
[408416587,1773587445198,-500.0,6.619e-05,2]
[408416588,1773587445207,-500.0,6.619e-05,2]
[408416589,1773587445217,-500.0,6.619e-05,2]
[408416590,1773587445227,-500.0,6.619e-05,2]
[408416591,1773587445237,-500.0,6.619e-05,2]
[408416592,1773587445246,-648.19029743,6.619e-05,2]
[408416593,1773587445255,-500.0,6.619e-05,2]
[408416594,1773587445265,-500.0,6.619e-05,2]
[408416595,1773587445275,-31699.43277547,6.62e-05,2]
[408416612,1773587452228,151.0,0.0001,120]
[408416613,1773587482277,151.0,0.0001,120]
[408416614,1773587522338,151.0,0.0001,120]
[408416615,1773587567145,151.0,0.0001,120]
[408416616,1773587607102,151.0,0.0001,120]
[408416617,1773587642411,151.0,0.0001,120]
[408416618,1773587676022,151.0,0.0001,120]
[408416619,1773587715513,151.0,0.0001,120]
[408416620,1773587762145,151.0,0.0001,120]
[408416621,1773587796892,151.0,0.0001,120]
[408416622,1773587836919,151.0,0.0001,120]
[408416623,1773587876047,151.0,0.0001,120]
[408416624,1773587912229,151.0,0.0001,120]
[408416625,1773587957476,151.0,0.0001,120]
[408416626,1773587976427,-1604.2785997,5.384e-05,2]
[408416627,1773587976448,-395.7214003,5.458e-05,2]
[408416628,1773587977244,-738.67859971,5.458e-05,2]
[408416629,1773587977275,-1261.32140029,5.513e-05,2]
[408416630,1773587977557,-2000.0,5.513e-05,2]
[408416631,1773587977997,-1738.67859971,5.513e-05,2]
[408416632,1773587978020,-261.32140029,5.625e-05,2]
[408416633,1773587978305,-342.31433091,5.625e-05,2]
[408416634,1773587978326,-294.7164882,5.682e-05,2]
[408416635,1773587978348,-1062.8120219,5.682e-05,2]
[408416636,1773587978369,-300.0,6.492e-05,2]
[408416637,1773587978389,-0.15715899,6.493e-05,2]
[408416638,1773587978831,-499.84284101,6.493e-05,2]
[408416639,1773587978853,-500.0,6.493e-05,2]
[408416640,1773587978873,-500.0,6.493e-05,2]
[408416641,1773587978894,-500.0,6.493e-05,2]
[408416642,1773587978915,-0.15715899,6.493e-05,2]
[408416643,1773587979614,-499.84284101,6.493e-05,2]
[408416644,1773587979636,-500.0,6.519e-05,2]
[408416645,1773587979659,-183.13225527,6.519e-05,2]
[408416646,1773587979685,-817.02490372,6.52e-05,2]
[408416647,1773587979749,-2000.0,6.52e-05,2]
[408416648,1773587979929,-2000.0,6.52e-05,2]
[408416649,1773587980333,-2000.0,6.52e-05,2]
[408416650,1773587980688,-2000.0,6.52e-05,2]
[408416651,1773587981168,-2000.0,6.52e-05,2]
[408416652,1773587981613,-2000.0,6.52e-05,2]
[408416653,1773587981904,-2000.0,6.52e-05,2]
[408416654,1773587982232,-2000.0,6.52e-05,2]
[408416655,1773587982562,-2000.0,6.52e-05,2]
[408416656,1773587982876,-2000.0,6.52e-05,2]
[408416657,1773587983322,-2000.0,6.52e-05,2]
[408416658,1773587983742,-2000.0,6.52e-05,2]
[408416659,1773587984173,-2000.0,6.52e-05,2]
[408416660,1773587984629,-2000.0,6.52e-05,2]
[408416661,1773587984960,-2000.0,6.52e-05,2]
[408416662,1773587985283,-2000.0,6.52e-05,2]
[408416663,1773587985599,-2000.0,6.52e-05,2]
[408416664,1773587986049,-2000.0,6.52e-05,2]
[408416665,1773587986456,-2000.0,6.52e-05,2]
[408416666,1773587986907,-2000.0,6.52e-05,2]
[408416667,1773587987242,-2000.0,6.52e-05,2]
[408416668,1773587987340,151.0,0.0001,120]
[408416669,1773587987574,-2000.0,6.52e-05,2]
[408416670,1773587987895,-2000.0,6.52e-05,2]
[408416671,1773587988231,-2000.0,6.52e-05,2]
[408416672,1773587988541,-2000.0,6.52e-05,2]
[408416673,1773587988863,-2000.0,6.52e-05,2]
[408416674,1773587989291,-2000.0,6.52e-05,2]
[408416675,1773587989924,-2000.0,6.52e-05,2]
[408416676,1773587990057,-2000.0,6.52e-05,2]
[408416677,1773587990371,-2000.0,6.52e-05,2]
[408416678,1773587990716,-2000.0,6.52e-05,2]
[408416679,1773587991146,-2000.0,6.52e-05,2]
[408416680,1773587991609,-2000.0,6.52e-05,2]
[408416681,1773587992100,-2000.0,6.52e-05,2]
[408416682,1773587992639,-2000.0,6.52e-05,2]
[408416683,1773587992932,-2000.0,6.52e-05,2]
[408416684,1773587993125,-2000.0,6.52e-05,2]
[408416685,1773587993474,-2000.0,6.52e-05,2]
[408416686,1773587993899,-2000.0,6.52e-05,2]
[408416687,1773587994370,-2000.0,6.52e-05,2]
[408416688,1773587994677,-2000.0,6.455e-05,2]
[408416689,1773587995109,-2000.0,6.455e-05,2]
[408416690,1773587995580,-1000.0,6.455e-05,2]
[408416691,1773587995606,-1000.0,6.52e-05,2]
[408416692,1773587995887,-2000.0,6.52e-05,2]
[408416693,1773587996194,-2000.0,6.52e-05,2]
[408416694,1773587996550,-2000.0,6.52e-05,2]
[408416695,1773587996948,-2000.0,6.52e-05,2]
[408416696,1773587997411,-2000.0,6.52e-05,2]
[408416697,1773587997839,-2000.0,6.52e-05,2]
[408416698,1773587998294,-2000.0,6.52e-05,2]
[408416699,1773587998707,-2000.0,6.52e-05,2]
[408416700,1773587999201,-2000.0,6.52e-05,2]
[408416701,1773587999521,-2000.0,6.52e-05,2]
[408416702,1773587999848,-2000.0,6.52e-05,2]
[408416703,1773588000522,-2000.0,6.52e-05,2]
[408416704,1773588000728,-2000.0,6.52e-05,2]
[408416705,1773588001091,-2000.0,6.52e-05,2]
[408416706,1773588001451,-2000.0,6.52e-05,2]
[408416707,1773588001788,-2000.0,6.52e-05,2]
[408416708,1773588002476,-500.0,6.493e-05,2]
[408416709,1773588002500,-300.0,6.519e-05,2]
[408416710,1773588002525,-1200.0,6.52e-05,2]
[408416711,1773588002922,-2000.0,6.52e-05,2]
[408416712,1773588003601,-2000.0,6.52e-05,2]
[408416713,1773588003740,-2000.0,6.52e-05,2]
[408416714,1773588004191,-2000.0,6.52e-05,2]
[408416715,1773588004490,-2000.0,6.52e-05,2]
[408416716,1773588004965,-2000.0,6.52e-05,2]
[408416717,1773588005459,-500.0,6.493e-05,2]
[408416718,1773588005485,-1500.0,6.52e-05,2]
[408416719,1773588005943,-2000.0,6.52e-05,2]
[408416720,1773588006305,-2000.0,6.52e-05,2]
[408416721,1773588006643,-2000.0,6.52e-05,2]
[408416722,1773588006978,-2000.0,6.52e-05,2]
[408416723,1773588007355,-500.0,6.493e-05,2]
[408416724,1773588007382,-1500.0,6.52e-05,2]
[408416725,1773588007715,-2000.0,6.52e-05,2]
[408416726,1773588008157,-2000.0,6.52e-05,2]
[408416727,1773588008766,-2000.0,6.52e-05,2]
[408416728,1773588008964,-2000.0,6.52e-05,2]
[408416729,1773588009400,-2000.0,6.52e-05,2]
[408416730,1773588009872,-2000.0,6.52e-05,2]
[408416731,1773588010316,-2000.0,6.52e-05,2]
[408416732,1773588011127,-2000.0,6.52e-05,2]
[408416733,1773588011195,-2000.0,6.52e-05,2]
[408416734,1773588011360,-2000.0,6.52e-05,2]
[408416735,1773588011728,-2000.0,6.52e-05,2]
[408416736,1773588012063,-2000.0,6.52e-05,2]
[408416737,1773588012424,-2000.0,6.52e-05,2]
[408416738,1773588012785,-2000.0,6.52e-05,2]
[408416739,1773588013141,-2000.0,6.52e-05,2]
[408416740,1773588013521,-2000.0,6.52e-05,2]
[408416741,1773588013586,-2000.0,6.52e-05,2]
[408416742,1773588013947,-2000.0,6.52e-05,2]
[408416743,1773588014418,-2000.0,6.52e-05,2]
[408416744,1773588014777,-2000.0,6.52e-05,2]
[408416745,1773588015149,-2000.0,6.52e-05,2]
[408416746,1773588015515,-2000.0,6.52e-05,2]
[408416747,1773588015866,-2000.0,6.52e-05,2]
[408416748,1773588016312,-2000.0,6.52e-05,2]
[408416749,1773588016764,-2000.0,6.52e-05,2]
[408416750,1773588017186,-2000.0,6.455e-05,2]
[408416751,1773588018384,-2000.0,6.455e-05,2]
[408416752,1773588018472,-1000.0,6.455e-05,2]
[408416753,1773588018496,-1000.0,6.52e-05,2]
[408416754,1773588019329,-2000.0,6.52e-05,2]
[408416755,1773588020941,-2000.0,6.52e-05,2]
[408416756,1773588020998,-2000.0,6.52e-05,2]
[408416757,1773588022583,-2000.0,6.52e-05,2]
[408416758,1773588022696,-2000.0,6.52e-05,2]
[408416759,1773588022946,-2000.0,6.52e-05,2]
[408416760,1773588023807,-2000.0,6.52e-05,2]
[408416761,1773588024536,-2000.0,6.52e-05,2]
[408416762,1773588024644,-2000.0,6.52e-05,2]
[408416763,1773588025907,151.0,0.0001,120]
[408416764,1773588026366,-2000.0,6.52e-05,2]
[408416765,1773588026413,-2000.0,6.52e-05,2]
[408416766,1773588026464,-2000.0,6.52e-05,2]
[408416767,1773588026925,-2000.0,6.52e-05,2]
[408416768,1773588027020,-2000.0,6.52e-05,2]
[408416769,1773588027098,-2000.0,6.52e-05,2]
[408416770,1773588027372,-2000.0,6.52e-05,2]
[408416771,1773588027560,-2000.0,6.52e-05,2]
[408416772,1773588028259,-2000.0,6.52e-05,2]
[408416773,1773588028532,-2000.0,6.52e-05,2]
[408416774,1773588028874,-2000.0,6.52e-05,2]
[408416775,1773588028940,-2000.0,6.52e-05,2]
[408416776,1773588029238,-2000.0,6.52e-05,2]
[408416777,1773588029572,-2000.0,6.52e-05,2]
[408416778,1773588032147,-2000.0,6.52e-05,2]
[408416779,1773588032183,-2000.0,6.52e-05,2]
[408416780,1773588032330,-2000.0,6.52e-05,2]
[408416781,1773588032731,-2000.0,6.52e-05,2]
[408416782,1773588033161,-2000.0,6.52e-05,2]
[408416783,1773588033634,-2000.0,6.52e-05,2]
[408416784,1773588034061,-2000.0,6.52e-05,2]
[408416785,1773588034517,-2000.0,6.52e-05,2]
[408416786,1773588034966,-2000.0,6.52e-05,2]
[408416787,1773588035425,-2000.0,6.52e-05,2]
[408416788,1773588039714,-2000.0,6.52e-05,2]
[408416789,1773588040075,-2000.0,6.455e-05,2]
[408416790,1773588040416,-2000.0,6.455e-05,2]
[408416791,1773588040750,-1000.0,6.455e-05,2]
[408416792,1773588040775,-1000.0,6.52e-05,2]
[408416793,1773588041102,-2000.0,6.52e-05,2]
[408416794,1773588042934,-2000.0,6.52e-05,2]
[408416795,1773588043257,-2000.0,6.52e-05,2]
[408416796,1773588043708,-2000.0,6.52e-05,2]
[408416797,1773588055342,-710872.58334034,6.52e-05,2]
[408416798,1773588066166,-2000.0,6.454e-05,2]
[408416799,1773588067046,151.0,0.0001,120]
[408416800,1773588097053,151.0,0.0001,120]
[408416801,1773588114430,-2000.0,6.389e-05,2]
[408416802,1773588146686,151.0,0.0001,120]
[408416803,1773588172301,-400.0,6.289e-05,2]
[408416804,1773588187116,151.0,0.0001,120]
[408416805,1773588192791,-58.49435571,6.289e-05,2]
[408416806,1773588192814,-388.785719,6.389e-05,2]
[408416807,1773588192838,-3000.0,6.454e-05,2]
[408416808,1773588192863,-500.0,6.493e-05,2]
[408416809,1773588192886,-500.0,6.493e-05,2]
[408416810,1773588192909,-300.0,6.519e-05,2]
[408416811,1773588192936,-170252.71992529,6.52e-05,2]
[408416812,1773588225053,151.0,0.0001,120]
[408416813,1773588258073,151.0,0.0001,120]
[408416814,1773588296070,151.0,0.0001,120]
[408416815,1773588336446,151.0,0.0001,120]
[408416826,1773588377838,151.0,0.0001,120]
[408416827,1773588416599,151.0,0.0001,120]
[408416828,1773588458599,151.0,0.0001,120]
[408416829,1773588507459,151.0,0.0001,120]
[408416830,1773588546252,151.0,0.0001,120]
[408416831,1773588582183,151.0,0.0001,120]
[408416832,1773588612385,151.0,0.0001,120]
[408416840,1773588631792,-2154.79999999,5.662e-05,2]
[408416844,1773588631816,-319.69850132,5.662e-05,2]
[408416904,1773588637929,-251.0,5.662e-05,2]
[408416927,1773588642270,-2274.50149869,5.662e-05,2]
[408416928,1773588642279,-502.0,5.662e-05,2]
[408416929,1773588642289,-862.26783658,5.719e-05,2]
[408416930,1773588642299,-300.0,5.774e-05,2]
[408416931,1773588642308,-300.0,5.774e-05,2]
[408416932,1773588642318,-300.0,5.774e-05,2]
[408416933,1773588642327,-300.0,5.774e-05,2]
[408416934,1773588642337,-300.0,5.774e-05,2]
[408416935,1773588642346,-300.0,5.774e-05,2]
[408416936,1773588642592,-300.0,5.774e-05,2]
[408416937,1773588642611,-300.0,5.774e-05,2]
[408416938,1773588642620,-300.0,5.774e-05,2]
[408416940,1773588642629,-300.0,5.774e-05,2]
[408416942,1773588642638,-300.0,5.774e-05,2]
[408416944,1773588642648,-300.0,5.774e-05,2]
[408416945,1773588642657,-300.0,5.774e-05,2]
[408416946,1773588642666,-300.0,5.774e-05,2]
[408416947,1773588642675,-300.0,5.774e-05,2]
[408416948,1773588642685,-196.1323308,5.894e-05,2]
[408416949,1773588642694,-300.0,6.492e-05,2]
[408416950,1773588642703,-542.0,6.492e-05,2]
[408416951,1773588642713,-191.85223527,6.493e-05,2]
[408416953,1773588643230,-289.68441863,6.493e-05,2]
[408416954,1773588643239,-499.30031689,6.493e-05,2]
[408416955,1773588643249,-500.0,6.493e-05,2]
[408416957,1773588643259,-500.0,6.493e-05,2]
[408416958,1773588643268,-500.0,6.493e-05,2]
[408416959,1773588643277,-281.66526448,6.493e-05,2]
[408416960,1773588643288,-218.33473552,6.493e-05,2]
[408416961,1773588643298,-500.0,6.493e-05,2]
[408416962,1773588643307,-500.0,6.493e-05,2]
[408416963,1773588643316,-375.63705855,6.493e-05,2]
[408416964,1773588643327,-124.36294145,6.493e-05,2]
[408416965,1773588643337,-500.0,6.493e-05,2]
[408416966,1773588643346,-287.55046318,6.493e-05,2]
[408416968,1773588645093,1368.28795945,5.605e-05,2]
[408416973,1773588645866,151.0,0.0001,120]
[408416979,1773588646108,-2946.32820227,5.605e-05,2]
[408416980,1773588646270,-685.38383828,5.605e-05,2]
[408416981,1773588646282,-2724.58098037,6.492e-05,2]
[408416982,1773588646293,-212.96457564,6.493e-05,2]
[408416983,1773588646303,-491.20152221,6.493e-05,2]
[408416984,1773588646313,-500.0,6.493e-05,2]
[408416985,1773588646323,-500.0,6.493e-05,2]
[408416986,1773588646333,-500.0,6.493e-05,2]
[408416987,1773588646343,-500.0,6.493e-05,2]
[408416988,1773588646352,-500.0,6.493e-05,2]
[408416989,1773588646362,-500.0,6.493e-05,2]
[408416990,1773588646372,-500.0,6.493e-05,2]
[408416991,1773588646381,-500.0,6.519e-05,2]
[408416992,1773588646391,-500.0,6.519e-05,2]
[408416993,1773588646400,-500.0,6.519e-05,2]
[408416994,1773588646410,-500.0,6.519e-05,2]
[408416995,1773588646419,-262.04776647,6.519e-05,2]
[408416996,1773588646430,-95774.82131703,6.52e-05,2]
[408416997,1773588685896,151.0,0.0001,120]
[408416998,1773588718515,151.0,0.0001,120]
[408416999,1773588750605,151.0,0.0001,120]
[408417000,1773588787238,151.0,0.0001,120]
[408417001,1773588826810,151.0,0.0001,120]
[408417002,1773588868396,151.0,0.0001,120]
[408417003,1773588916599,151.0,0.0001,120]
[408417004,1773588947688,151.0,0.0001,120]
[408417005,1773588985767,151.0,0.0001,120]
[408417006,1773589015994,151.0,0.0001,120]
[408417007,1773589065271,151.0,0.0001,120]
[408417008,1773589097040,151.0,0.0001,120]
[408417009,1773589142152,151.0,0.0001,120]
[408417010,1773589184693,151.0,0.0001,120]
[408417011,1773589226128,151.0,0.0001,120]
[408417012,1773589264612,151.0,0.0001,120]
[408417019,1773589802469,174.6,2e-05,2]
[408417072,1773589838638,-3486.12324191,2.058e-05,2]
[408417073,1773589838650,-1513.87675809,2.058e-05,2]
[408417074,1773589838659,-5000.0,2.079e-05,2]
[408417075,1773589838668,-174.6,2.1e-05,2]
[408417076,1773589838676,-174.6,2.1e-05,2]
[408417077,1773589838685,-300.0,2.141e-05,2]
[408417078,1773589838694,-300.0,2.141e-05,2]
[408417079,1773589838703,-300.0,2.141e-05,2]
[408417080,1773589838712,-300.0,2.141e-05,2]
[408417081,1773589838721,-300.0,2.141e-05,2]
[408417082,1773589838730,-300.0,2.141e-05,2]
[408417083,1773589838739,-300.0,2.141e-05,2]
[408417084,1773589838748,-174.6,2.2e-05,2]
[408417085,1773589838757,-4495.51862211,4.926e-05,2]
[408417086,1773589838767,-300.0,5.025e-05,2]
[408417087,1773589838776,-420.0,5.528e-05,2]
[408417088,1773589838785,-206.0922415,5.556e-05,2]
[408417089,1773589838798,-196.1308816,5.891e-05,2]
[408417090,1773589838809,-454.8480242,5.896e-05,2]
[408417091,1773589838818,-587.0,6.08e-05,2]
[408417092,1773589838827,-227.35707143,6.493e-05,2]
[408417093,1773589838836,-500.0,6.493e-05,2]
[408417094,1773589838847,-500.0,6.493e-05,2]
[408417095,1773589838856,-500.0,6.493e-05,2]
[408417096,1773589838865,-500.0,6.493e-05,2]
[408417097,1773589838876,-500.0,6.493e-05,2]
[408417098,1773589838885,-500.0,6.493e-05,2]
[408417099,1773589838895,-500.0,6.493e-05,2]
[408417100,1773589838904,-642.60761232,6.493e-05,2]
[408417101,1773589838913,-500.25503198,6.493e-05,2]
[408417102,1773589838923,-500.0,6.493e-05,2]
[408417103,1773589838932,-251.33864072,6.515e-05,2]
[408417104,1773589838941,-162.380719,6.516e-05,2]
[408417105,1773589838950,-445.202766,6.516e-05,2]
[408417106,1773589838959,-151.0,6.516e-05,2]
[408417107,1773589838968,-500.0,6.516e-05,2]
[408417108,1773589838977,-500.0,6.516e-05,2]
[408417109,1773589838990,-500.0,6.516e-05,2]
[408417110,1773589838998,-500.0,6.516e-05,2]
[408417111,1773589839008,-1957.856,6.516e-05,2]
[408417112,1773589839017,-500.0,6.516e-05,2]
[408417113,1773589839027,-162.380719,6.516e-05,2]
[408417114,1773589839036,-500.0,6.516e-05,2]
[408417115,1773589839046,-500.0,6.516e-05,2]
[408417116,1773589839055,-500.0,6.516e-05,2]
[408417117,1773589839064,-500.0,6.516e-05,2]
[408417118,1773589839073,-250.0,6.516e-05,2]
[408417119,1773589839082,-500.0,6.516e-05,2]
[408417120,1773589839092,-250.0,6.516e-05,2]
[408417121,1773589839102,-500.0,6.516e-05,2]
[408417122,1773589839112,-392.29797647,6.516e-05,2]
[408417123,1773589839121,-500.0,6.516e-05,2]
[408417124,1773589839130,-500.0,6.516e-05,2]
[408417125,1773589839141,-500.0,6.516e-05,2]
[408417126,1773589839150,-500.0,6.516e-05,2]
[408417127,1773589839160,-500.0,6.516e-05,2]
[408417128,1773589839170,-500.0,6.516e-05,2]
[408417129,1773589839180,-500.0,6.516e-05,2]
[408417130,1773589839189,-156.587,6.516e-05,2]
[408417131,1773589839199,-5376.845,6.516e-05,2]
[408417132,1773589839207,-2150.738,6.516e-05,2]